bitfinex/quotes_ETHUSD_20240722
["timestamp","ask_amount","ask_price","bid_price","bid_amount"]
[1721659666207,0.45355957,3459.0,3458.4,2.89146]
[1721659666400,0.45355957,3459.0,3458.2,5.78327]
[1721659666601,0.45355957,3459.0,3458.3,3.469907]
[1721659667035,0.45355957,3459.0,3458.3,0.578327]
[1721659667268,3.34460957,3459.0,3458.3,0.578327]
[1721659667396,2.8911,3458.9,3458.0,2.89184]
[1721659667597,2.89117,3458.8,3458.0,2.89184]
[1721659667918,0.45355957,3459.0,3458.2,2.89167]
[1721659667919,3.34461957,3459.0,3458.2,2.89167]
[1721659668228,3.34461957,3459.0,3458.0,2.89179]
[1721659668229,0.45355957,3459.0,3458.0,2.89176]
[1721659668410,3.34456957,3459.0,3458.1,0.3715042]
[1721659668618,0.45355957,3459.0,3458.1,0.3715042]
[1721659668855,0.45355957,3459.0,3458.2,2.89161]
[1721659669061,0.45355957,3459.0,3458.3,2.89155]
[1721659669494,3.34456957,3459.0,3458.3,2.89155]
[1721659669701,2.89089,3459.2,3458.4,2.89148]
[1721659669924,2.89089,3459.2,3458.5,0.578303]
[1721659670118,2.89094,3459.1,3458.5,0.578303]
[1721659670345,2.89101,3459.0,3458.5,0.578303]
[1721659671228,2.89067,3459.4,3458.1,2.89174]
[1721659671531,2.89118,3458.8,3458.1,2.89174]
[1721659671728,2.89105,3459.0,3458.2,2.89163]
[1721659672325,2.89098,3459.1,3458.1,2.89174]
[1721659672650,2.89114,3458.9,3458.0,2.89184]
[1721659672838,2.89114,3458.9,3457.3,3.0]
[1721659672839,2.89162,3458.3,3457.6,2.89217]
[1721659673027,2.89146,3458.5,3457.5,3.47072]
[1721659673235,2.89163,3458.3,3457.5,3.47072]
[1721659673568,2.89168,3458.2,3457.5,0.57846]
[1721659673754,2.89177,3458.1,3457.5,0.57846]
[1721659673922,2.89154,3458.4,3457.5,3.47072]
[1721659674129,2.89154,3458.4,3457.5,0.57846]
[1721659674361,2.89159,3458.3,3457.5,3.47067]
[1721659674936,2.3259,3458.7,3457.5,0.57846]
[1721659674937,2.8917,3458.2,3457.5,0.57846]
[1721659675168,2.89184,3458.1,3457.2,5.14514]
[1721659675374,2.89184,3458.0,3457.3,2.89241]
[1721659675764,2.89175,3458.2,3457.5,2.89225]
[1721659675966,2.89175,3458.2,3457.3,2.89241]
[1721659675967,2.89175,3458.2,3457.4,2.89234]
[1721659676167,5.78296,3458.5,3457.5,2.89218]
[1721659676342,5.78296,3458.5,3457.7,2.89207]
[1721659676343,2.89147,3458.5,3457.7,2.89207]
[1721659676543,2.89151,3458.4,3457.6,3.181388]
[1721659677235,2.89169,3458.2,3457.2,5.14516]
[1721659677436,1.7,3458.8,3456.8,2.89278]
[1721659677437,2.89214,3457.7,3456.8,2.89278]
[1721659677641,2.4821,3458.6,3456.9,2.89275]
[1721659677642,2.89219,3457.6,3456.9,2.89275]
[1721659678142,2.89243,3457.3,3456.6,5.146]
[1721659678437,4.1821,3457.8,3456.2,5.14632]
[1721659678639,2.89275,3457.0,3456.2,5.14632]
[1721659679038,2.89275,3457.0,3456.2,2.253]
[1721659679471,2.89281,3456.9,3456.2,2.253]
[1721659679868,2.89281,3456.9,3456.2,5.253]
[1721659680250,2.89265,3457.1,3456.2,5.253]
[1721659680445,1.7,3457.4,3456.6,2.89296]
[1721659680446,3.24239,3457.4,3456.6,2.89296]
[1721659680673,2.89239,3457.4,3456.6,2.89296]
[1721659680862,2.89256,3457.2,3456.4,2.89315]
[1721659681183,2.89264,3457.1,3456.3,0.814636]
[1721659681386,2.89299,3456.7,3455.4,3.19588239]
[1721659681587,2.89299,3456.7,3455.9,2.89353]
[1721659681747,1.7,3457.3,3455.6,0.55]
[1721659681950,3.24247,3457.3,3456.3,2.89326]
[1721659682271,2.89231,3457.5,3456.7,2.89287]
[1721659682472,2.89223,3457.6,3456.7,3.471462]
[1721659682788,2.89205,3457.8,3456.9,2.8927]
[1721659683084,2.89205,3457.8,3456.3,3.34084616]
[1721659683085,5.78413,3457.8,3457.0,2.95046563]
[1721659683285,2.89205,3457.8,3456.8,2.89282]
[1721659683505,0.35,3458.0,3456.5,0.05784175]
[1721659683650,0.35,3458.0,3457.2,2.89245]
[1721659683651,2.89185,3458.0,3457.2,2.89245]
[1721659683965,2.89193,3457.9,3457.2,2.89245]
[1721659684294,2.89193,3457.9,3457.2,0.578506]
[1721659685296,2.89195,3457.9,3457.2,0.578506]
[1721659685497,2.89195,3457.9,3457.2,3.471016]
[1721659685697,2.892,3457.9,3456.9,2.89276]
[1721659685912,2.89209,3457.7,3457.0,3.0]
[1721659686388,2.89209,3457.7,3457.0,5.89267]
[1721659686722,2.89199,3457.9,3457.1,2.89258]
[1721659687245,2.89199,3457.9,3457.1,2.89259]
[1721659687516,3.24620801,3458.3,3457.1,2.89259]
[1721659687674,2.8919,3458.0,3457.1,2.89259]
[1721659687874,2.89168,3458.2,3457.0,3.0]
[1721659688071,11.11074801,3458.4,3457.5,2.89221]
[1721659688309,2.8916,3458.3,3457.4,2.89233]
[1721659688511,3.79059801,3458.6,3457.4,2.89233]
[1721659688718,3.79035801,3458.9,3457.9,2.89187]
[1721659688877,2.89123,3458.8,3458.1,2.89174]
[1721659689789,2.89101,3459.0,3458.2,2.94948739]
[1721659689987,2.89087,3459.2,3458.3,2.89154]
[1721659689988,2.89094,3459.1,3458.3,2.89154]
[1721659690216,2.89094,3459.1,3457.8,2.485]
[1721659690401,14.928,3459.5,3458.5,2.89136]
[1721659690402,2.89081,3459.3,3458.5,2.89136]
[1721659690603,2.89081,3459.3,3458.3,2.89151]
[1721659690783,2.89092,3459.1,3458.3,5.78305]
[1721659690980,2.89084,3459.2,3458.4,2.89143]
[1721659691181,1.24920801,3459.5,3458.2,2.89162]
[1721659691382,2.89108,3459.0,3458.2,2.89162]
[1721659691700,2.89111,3458.9,3458.2,2.89162]
[1721659692074,2.89099,3459.1,3458.3,2.89158]
[1721659692283,1.43308121,3459.4,3458.3,2.89158]
[1721659692284,2.89101,3459.0,3458.3,2.89158]
[1721659693882,2.89101,3459.0,3458.2,2.89166]
[1721659694086,2.89101,3459.0,3458.2,3.5237257]
[1721659694309,2.89087,3459.2,3458.2,3.5237257]
[1721659694508,2.89087,3459.2,3458.5,2.89135]
[1721659694837,2.89092,3459.1,3458.2,3.5237357]
[1721659694989,3.4246132,3459.4,3458.4,2.89143]
[1721659694990,2.89084,3459.2,3458.4,2.89143]
[1721659695400,0.5338732,3459.4,3458.2,3.5237357]
[1721659695592,5.78197,3459.1,3458.4,2.8915]
[1721659695796,0.47770336,3459.3,3457.6,2.89215]
[1721659696101,0.80341242,3459.5,3457.9,2.89192]
[1721659696102,2.89132,3458.7,3457.9,2.89192]
[1721659696337,2.89132,3458.7,3458.0,2.89183]
[1721659696504,2.89169,3458.2,3457.4,2.89231]
[1721659696709,2.89174,3458.2,3457.4,2.89234]
[1721659696905,2.89138,3458.6,3457.2,2.89245]
[1721659697108,2.89214,3457.7,3456.9,2.89271]
[1721659697509,2.89219,3457.6,3456.7,5.34745]
[1721659697832,2.89219,3457.6,3456.7,2.4546]
[1721659697833,2.8923,3457.5,3456.7,2.4546]
[1721659698040,2.89275,3457.0,3456.0,0.60445493]
[1721659698208,2.89275,3457.0,3455.9,4.40265747]
[1721659698209,2.89298,3456.7,3455.9,2.8936]
[1721659698413,2.89274,3457.0,3456.0,3.704995]
[1721659698724,2.89291,3456.8,3456.0,3.704965]
[1721659699739,2.8931,3456.5,3455.8,2.3276]
[1721659699965,0.35,3457.1,3455.8,2.3276]
[1721659700162,0.89920801,3457.5,3456.3,2.89323]
[1721659700445,7.32,3457.6,3456.8,2.89284]
[1721659700633,2.89211,3457.7,3456.6,2.89297]
[1721659700832,2.89227,3457.5,3456.6,0.289297]
[1721659701033,5.21149,3458.1,3456.3,2.89321]
[1721659701034,2.89264,3457.1,3456.3,2.89321]
[1721659701354,2.89264,3457.1,3455.9,3.0]
[1721659701355,2.89281,3456.9,3456.0,2.89348]
[1721659701507,2.89281,3456.9,3455.9,3.0]
[1721659701705,2.89298,3456.7,3455.9,5.78708]
[1721659701907,2.89298,3456.7,3456.0,5.8935]
[1721659702110,5.78562,3456.9,3456.0,7.004963]
[1721659702354,2.89248,3457.3,3455.5,2.89388]
[1721659702355,2.4311,3457.1,3455.5,2.89388]
[1721659702526,2.89316,3456.5,3455.4,2.89397]
[1721659702722,3.24296,3456.7,3455.7,2.89374]
[1721659702921,2.89298,3456.7,3455.8,2.89363]
[1721659703105,5.78598,3456.7,3455.8,2.89363]
[1721659703312,2.89279,3456.9,3455.8,2.89362]
[1721659703773,2.89279,3456.9,3456.0,2.89351]
[1721659703774,3.24279,3456.9,3456.0,2.89351]
[1721659703976,2.89285,3456.8,3455.9,2.89354]
[1721659704245,2.89294,3456.7,3455.9,2.89354]
[1721659704411,2.89279,3456.9,3456.1,2.89342]
[1721659704911,2.89291,3456.8,3456.0,2.8935]
[1721659705253,2.89279,3456.9,3456.1,2.89336]
[1721659705411,2.89262,3457.1,3456.3,2.89326]
[1721659706016,2.89247,3457.3,3456.4,2.95097599]
[1721659706216,0.35,3457.2,3456.5,2.89308]
[1721659706518,2.89247,3457.3,3456.5,2.89308]
[1721659706729,2.89247,3457.3,3456.6,0.578629]
[1721659707210,2.89268,3457.0,3456.2,2.3686]
[1721659707423,3.0,3457.4,3456.0,0.28935]
[1721659707772,2.89312,3456.5,3455.6,2.89384]
[1721659708153,1.7,3457.2,3455.5,3.0]
[1721659708154,2.893,3456.7,3455.8,2.8936]
[1721659708372,2.893,3456.7,3456.0,2.89346]
[1721659708821,2.89301,3456.6,3455.8,2.8936]
[1721659709151,2.893,3456.7,3455.9,2.89358]
[1721659709328,2.893,3456.7,3456.0,0.578718]
[1721659709658,2.89283,3456.9,3456.1,2.89338]
[1721659709858,2.89236,3457.4,3456.1,2.89338]
[1721659710060,2.89289,3456.8,3456.1,2.89338]
[1721659710265,2.89293,3456.7,3455.9,2.89353]
[1721659710422,2.89293,3456.7,3456.0,2.89351]
[1721659712979,2.89264,3457.1,3455.9,0.578716]
[1721659713180,2.89277,3456.9,3456.2,2.89334]
[1721659713476,2.89285,3456.8,3456.0,2.89345]
[1721659713685,2.89277,3456.9,3456.1,2.89338]
[1721659714178,2.89285,3456.8,3456.1,2.89338]
[1721659714601,2.89285,3456.8,3456.0,2.89347]
[1721659714875,2.89285,3456.8,3455.9,2.89359]
[1721659714876,2.89293,3456.7,3455.9,2.89353]
[1721659715106,2.89293,3456.7,3455.9,6.365795]
[1721659715406,2.89285,3456.8,3456.0,2.89346]
[1721659715607,2.89295,3456.7,3455.9,3.472255]
[1721659715769,2.89302,3456.6,3455.8,2.89366]
[1721659715970,2.89306,3456.6,3455.9,2.89359]
[1721659716243,2.89306,3456.6,3455.9,2.89354]
[1721659716424,2.89306,3456.6,3455.5,3.0]
[1721659716599,2.89306,3456.6,3455.9,2.89354]
[1721659716920,2.89323,3456.4,3455.6,2.89381]
[1721659717090,2.89293,3456.7,3455.4,2.89396]
[1721659717271,2.89339,3456.2,3455.4,2.89396]
[1721659717469,2.89293,3456.7,3455.4,2.89396]
[1721659717696,2.8934,3456.2,3455.5,2.89392]
[1721659717886,2.89323,3456.4,3455.6,2.89383]
[1721659718099,3.482353,3456.6,3455.8,2.89367]
[1721659718312,3.0,3456.9,3455.3,2.4452]
[1721659718313,3.0,3456.9,3455.3,5.33927]
[1721659718612,2.89314,3456.5,3455.8,2.89362]
[1721659718779,2.89314,3456.5,3455.6,2.89384]
[1721659718780,0.35,3456.8,3455.3,2.4452]
[1721659718972,0.35,3456.8,3456.0,2.89345]
[1721659718973,2.89289,3456.8,3456.0,2.89345]
[1721659719173,2.89289,3456.8,3456.1,2.89343]
[1721659719403,3.0,3456.9,3456.2,2.89329]
[1721659719608,3.0,3456.9,3455.3,2.4452]
[1721659719609,0.35,3456.9,3456.1,2.89338]
[1721659719812,3.0,3457.4,3456.1,3.472073]
[1721659720008,5.78547,3457.0,3456.3,2.89321]
[1721659720189,2.89272,3457.0,3455.9,2.89355]
[1721659720390,3.0,3457.4,3455.9,2.89354]
[1721659720391,2.89301,3456.7,3455.9,2.89354]
[1721659720625,2.89254,3457.2,3455.9,2.89354]
[1721659720626,2.89289,3456.8,3455.9,2.89354]
[1721659720781,2.89278,3456.9,3456.1,2.89338]
[1721659721120,2.8929,3456.8,3456.1,2.89338]
[1721659721422,2.89293,3456.7,3456.0,2.89351]
[1721659721575,3.24272,3457.0,3456.1,2.89342]
[1721659721910,2.89276,3456.9,3456.2,2.89329]
[1721659722114,2.89276,3456.9,3456.1,2.89337]
[1721659722474,2.89276,3456.9,3456.2,2.89334]
[1721659722911,2.89276,3456.9,3456.0,2.89345]
[1721659723136,2.89293,3456.7,3456.0,2.89345]
[1721659723436,3.182136,3456.8,3456.1,2.89343]
[1721659723575,2.89276,3456.9,3456.2,2.89333]
[1721659723773,2.89294,3456.7,3456.0,5.7869]
[1721659723976,2.89294,3456.7,3456.0,3.47214]
[1721659724235,2.89294,3456.7,3456.0,2.89345]
[1721659724522,2.89285,3456.8,3456.0,2.89345]
[1721659724809,2.89281,3456.9,3456.2,2.8933]
[1721659724979,2.89281,3456.9,3456.0,2.89346]
[1721659724980,2.89289,3456.8,3456.0,2.89344]
[1721659725176,2.89314,3456.5,3455.8,2.89362]
[1721659725376,2.89327,3456.3,3455.4,2.89396]
[1721659725688,2.89347,3456.1,3455.4,2.89396]
[1721659725908,2.89347,3456.1,3455.3,2.4452]
[1721659726217,0.289314,3456.4,3455.4,2.894]
[1721659726514,3.182494,3456.4,3455.6,2.89377]
[1721659727136,9.7586,3456.8,3455.8,2.89367]
[1721659727445,2.8931,3456.5,3455.6,2.8938]
[1721659727591,2.89322,3456.4,3455.7,2.89375]
[1721659727981,2.89322,3456.4,3455.7,2.89372]
[1721659728180,5.89298,3456.7,3455.5,2.89389]
[1721659728399,2.89315,3456.5,3455.8,2.89367]
[1721659728720,0.833158,3456.6,3455.9,2.89359]
[1721659728891,11.3798,3457.4,3455.4,2.463]
[1721659729218,11.3798,3457.4,3456.1,2.89336]
[1721659729219,3.24281,3456.9,3456.1,2.89336]
[1721659729390,3.24281,3456.9,3455.6,2.89383]
[1721659729391,3.506392,3456.8,3455.6,2.89383]
[1721659729589,2.89285,3456.8,3456.0,2.89345]
[1721659729790,2.89285,3456.8,3455.9,2.89355]
[1721659730116,2.89285,3456.8,3456.1,2.89342]
[1721659730515,2.89265,3457.1,3456.2,2.89335]
[1721659730817,3.35,3457.0,3456.3,2.89326]
[1721659731018,3.0,3457.0,3456.3,2.89326]
[1721659731179,2.89264,3457.1,3456.4,2.89314]
[1721659731377,3.877131,3457.1,3456.2,2.89326]
[1721659731605,5.78545,3457.0,3456.3,2.89325]
[1721659731788,5.78544,3457.0,3456.3,2.89321]
[1721659731994,2.8927,3457.0,3456.3,2.89321]
[1721659732394,4.227131,3457.1,3456.3,2.89321]
[1721659732612,4.227131,3457.1,3456.3,2.8932]
[1721659732918,2.89264,3457.1,3456.3,2.89319]
[1721659733521,2.89248,3457.3,3456.3,2.89321]
[1721659733844,0.35,3457.1,3456.5,2.89308]
[1721659734122,2.89239,3457.4,3456.3,5.23732]
[1721659734306,2.89239,3457.4,3456.3,5.761052]
[1721659734491,2.89248,3457.3,3456.6,2.893]
[1721659734694,2.89234,3457.4,3456.6,2.893]
[1721659734935,3.0,3457.6,3456.8,2.8928]
[1721659735220,2.89234,3457.4,3456.7,2.89293]
[1721659735426,3.24234,3457.4,3456.7,3.471519]
[1721659735611,2.89234,3457.4,3456.7,3.471519]
[1721659735792,2.89234,3457.4,3456.7,2.89293]
[1721659736202,2.89251,3457.2,3456.4,2.89317]
[1721659736402,2.89257,3457.2,3456.3,0.523732]
[1721659736597,2.89256,3457.2,3456.5,2.89305]
[1721659736811,2.8925,3457.3,3456.5,2.89305]
[1721659737011,2.89251,3457.2,3456.5,2.89305]
[1721659737435,3.0,3457.6,3455.8,2.3418]
[1721659737583,2.89305,3456.6,3455.8,2.3418]
[1721659737787,2.8929,3456.8,3455.9,2.89352]
[1721659738020,2.2725,3457.0,3455.9,2.89352]
[1721659738222,2.89289,3456.8,3456.1,2.89338]
[1721659738435,10.21245,3457.3,3455.8,2.87598]
[1721659738436,7.32,3457.3,3455.8,2.87598]
[1721659738610,2.89262,3457.1,3456.4,2.8931]
[1721659738809,0.913509,3457.1,3455.8,2.3418]
[1721659739114,2.89341,3456.2,3455.5,2.8939]
[1721659739337,2.89352,3456.0,3455.3,5.23587]
[1721659739611,2.89304,3456.6,3455.4,2.89401]
[1721659739612,2.89343,3456.1,3455.4,2.89401]
[1721659740317,2.89322,3456.4,3455.6,2.8938]
[1721659740526,2.89322,3456.4,3455.4,2.89394]
[1721659740527,2.89328,3456.3,3455.4,2.89394]
[1721659740708,2.89328,3456.3,3455.6,5.78759]
[1721659741110,2.89347,3456.1,3455.4,2.89395]
[1721659741298,2.89347,3456.1,3455.2,2.89411]
[1721659741611,2.89321,3456.4,3455.7,2.89372]
[1721659742025,2.89306,3456.6,3455.6,2.89383]
[1721659742237,0.516556,3456.5,3455.1,1.50967391]
[1721659742401,0.516556,3456.5,3455.1,2.89426]
[1721659742402,2.89345,3456.1,3455.1,2.89426]
[1721659742750,2.89345,3456.1,3455.1,2.89424]
[1721659742751,2.89347,3456.1,3455.1,2.89424]
[1721659742888,2.8936,3455.9,3455.1,2.89424]
[1721659743221,2.8936,3455.9,3455.2,2.89417]
[1721659743423,3.5622278,3455.9,3455.0,1.2]
[1721659743628,0.6686278,3455.9,3455.0,1.2]
[1721659743848,2.894,3455.5,3455.0,1.2]
[1721659743989,2.89402,3455.4,3455.0,1.2]
[1721659744194,2.89415,3455.3,3455.0,1.2]
[1721659744392,2.8942,3455.2,3455.0,1.2]
[1721659744703,2.89427,3455.1,3455.0,1.2]
[1721659745004,17.06978,3455.1,3455.0,1.2]
[1721659745205,17.06978,3455.1,3453.2,0.60445493]
[1721659745206,2.89486,3454.4,3453.2,0.60445493]
[1721659745420,2.89556,3453.6,3452.8,2.4429]
[1721659745591,2.89556,3453.6,3452.5,2.89637]
[1721659745592,2.89561,3453.5,3452.7,2.89625]
[1721659745796,2.89537,3453.8,3452.7,2.89625]
[1721659746440,0.35,3453.8,3453.1,2.89593]
[1721659746592,2.89538,3453.8,3452.9,2.89605]
[1721659746796,2.89525,3454.0,3453.2,2.89582]
[1721659747102,0.35,3454.0,3453.3,2.89574]
[1721659747305,0.35,3454.0,3453.3,2.89577]
[1721659747567,0.35,3454.0,3453.6,2.89546]
[1721659747890,2.8947,3454.6,3453.8,2.89533]
[1721659748241,3.24486,3454.4,3453.6,2.89551]
[1721659748403,0.35,3454.4,3453.6,3.185061]
[1721659748618,0.35,3454.4,3453.7,2.89536]
[1721659748827,5.2997,3454.7,3453.7,2.89536]
[1721659749030,5.2997,3454.7,3453.8,2.8953]
[1721659749031,0.35,3454.5,3453.8,2.8953]
[1721659749345,0.35,3454.5,3453.8,0.66594499]
[1721659749527,0.35,3454.5,3454.3,2.89488]
[1721659749717,2.89428,3455.1,3454.3,2.89488]
[1721659749918,0.35,3455.0,3454.3,2.89488]
[1721659750252,0.35,3455.0,3454.4,2.89478]
[1721659750760,3.24435,3455.0,3454.2,2.89494]
[1721659750918,3.24435,3455.0,3454.2,3.473941]
[1721659751111,0.35,3455.0,3454.3,2.89488]
[1721659751713,0.35,3455.0,3454.4,2.89485]
[1721659751918,0.35,3455.0,3454.5,2.89474]
[1721659752226,0.35,3455.0,3454.3,2.89488]
[1721659752428,0.35,3455.0,3454.3,3.7580681]
[1721659752631,0.35,3455.0,3454.5,2.89477]
[1721659752827,0.35,3455.0,3454.6,0.05789194]
[1721659753043,2.2675,3455.6,3454.3,0.8632081]
[1721659753044,2.2675,3455.6,3454.9,2.89438]
[1721659753218,13.04381,3455.7,3454.9,2.89438]
[1721659753219,0.35,3455.2,3454.9,2.89438]
[1721659753718,0.35,3455.2,3454.9,2.89437]
[1721659753926,7.32,3455.7,3454.9,0.289437]
[1721659754142,0.35,3455.5,3455.2,2.89411]
[1721659754464,0.35,3455.8,3455.2,2.89411]
[1721659754667,0.35,3455.8,3455.4,2.894]
[1721659754887,0.35,3455.8,3455.5,2.89391]
[1721659755030,7.32,3456.4,3455.7,2.89376]
[1721659755372,1.2676,3456.4,3455.5,5.78778]
[1721659755555,2.4629,3456.5,3454.9,2.4526]
[1721659755556,2.4629,3456.5,3455.7,2.89375]
[1721659755870,0.35,3456.0,3455.8,2.89365]
[1721659756166,2.4629,3457.1,3456.0,2.89345]
[1721659756167,2.89289,3456.8,3456.0,2.89345]
[1721659756377,0.35,3456.5,3456.0,2.89345]
[1721659756559,0.35,3456.5,3455.8,2.89362]
[1721659756879,3.217551,3456.4,3455.7,2.89375]
[1721659757047,2.89335,3456.2,3455.5,2.89386]
[1721659757668,0.324301,3456.4,3455.5,2.89386]
[1721659757898,2.4629,3456.2,3454.6,7.31]
[1721659758077,2.89425,3455.2,3454.4,5.34739]
[1721659758277,2.89425,3455.2,3454.2,2.89498]
[1721659758278,2.89429,3455.1,3454.2,2.89498]
[1721659758583,0.578831,3455.2,3454.6,2.89464]
[1721659758784,2.894,3455.5,3454.7,2.89459]
[1721659758985,0.35,3455.2,3454.8,2.89451]
[1721659759284,0.35,3455.2,3454.9,2.89442]
[1721659759448,2.89369,3455.8,3454.8,5.78897]
[1721659759630,2.89369,3455.8,3454.2,2.89502]
[1721659759832,2.89403,3455.4,3454.7,2.89457]
[1721659760104,2.89427,3455.2,3454.3,2.89487]
[1721659760273,2.89427,3455.2,3454.4,2.89478]
[1721659760676,2.8941,3455.3,3454.6,2.89468]
[1721659760876,0.35,3455.1,3454.5,2.89473]
[1721659761080,2.89395,3455.5,3454.7,2.89454]
[1721659761243,1.321369,3455.7,3454.8,2.8945]
[1721659761450,0.35,3455.3,3454.5,2.89473]
[1721659761767,0.35,3455.3,3454.7,2.8946]
[1721659762077,2.89427,3455.1,3454.3,2.8949]
[1721659762284,2.89446,3454.9,3454.2,2.895]
[1721659762451,2.8944,3455.0,3454.2,2.89496]
[1721659762781,0.35,3455.0,3454.4,2.89483]
[1721659762980,0.35,3455.0,3454.7,2.89456]
[1721659763277,2.89396,3455.5,3453.9,5.4526]
[1721659763594,4.321369,3455.7,3454.8,2.89446]
[1721659763595,0.35,3455.2,3454.8,2.89446]
[1721659763800,0.35,3455.2,3455.1,2.89427]
[1721659764081,2.8937,3455.8,3454.9,5.78879]
[1721659764288,0.35,3455.6,3455.1,2.89421]
[1721659764587,0.35,3455.6,3455.1,5.78845]
[1721659764746,2.89361,3455.9,3455.1,2.89422]
[1721659764942,0.35,3455.7,3455.1,2.89422]
[1721659765280,0.35,3455.7,3455.2,2.8941]
[1721659765690,0.35,3455.7,3455.3,2.89406]
[1721659765856,0.35,3455.7,3455.4,2.894]
[1721659766194,2.89348,3456.1,3455.3,2.89407]
[1721659766390,0.35,3455.8,3455.3,2.89407]
[1721659766574,0.35,3455.8,3455.3,5.78811]
[1721659766883,0.35,3455.8,3455.4,2.89401]
[1721659767191,2.89382,3455.7,3454.7,5.14845]
[1721659767388,2.89369,3455.8,3455.1,2.89426]
[1721659767687,0.5788201,3456.2,3455.4,2.89401]
[1721659767688,0.35,3455.9,3455.4,2.89401]
[1721659767888,0.35,3455.9,3455.2,2.89417]
[1721659768096,2.89369,3455.8,3454.8,2.89447]
[1721659768390,0.5788201,3456.2,3455.2,2.89418]
[1721659768391,2.89356,3456.0,3455.2,2.89418]
[1721659768789,2.89361,3455.9,3455.2,2.89418]
[1721659768991,2.89354,3456.0,3455.3,2.8941]
[1721659769283,2.89354,3456.0,3455.1,2.89425]
[1721659769284,0.35,3456.0,3455.1,2.89422]
[1721659769583,0.35,3456.0,3455.4,2.89396]
[1721659769791,0.35,3456.0,3455.3,2.89409]
[1721659769792,2.89353,3456.0,3455.3,2.89409]
[1721659769974,0.88296001,3456.0,3455.3,2.89409]
[1721659770149,2.8936,3455.9,3455.3,2.89409]
[1721659770552,2.89372,3455.8,3455.0,2.89429]
[1721659770775,6.67010001,3456.0,3455.0,2.89429]
[1721659771091,3.77651001,3456.0,3455.2,5.78827]
[1721659771404,3.77651001,3456.0,3455.3,2.89409]
[1721659771688,2.89339,3456.2,3455.5,2.89392]
[1721659771889,2.89365,3455.9,3455.1,2.89421]
[1721659772094,2.89382,3455.7,3454.9,2.89436]
[1721659772420,2.89382,3455.7,3455.0,2.89435]
[1721659773584,2.89382,3455.7,3454.8,2.89444]
[1721659773797,2.89394,3455.5,3454.6,2.89465]
[1721659774120,2.89424,3455.2,3454.4,2.89484]
[1721659774276,2.89437,3455.0,3454.2,2.89496]
[1721659774616,2.3398,3455.3,3454.4,2.89484]
[1721659774926,2.89421,3455.2,3454.5,2.89476]
[1721659775195,2.89421,3455.2,3454.4,2.89484]
[1721659775196,2.89406,3455.4,3454.6,2.89468]
[1721659775415,0.35,3455.4,3454.6,2.89468]
[1721659775706,2.8939,3455.6,3454.8,2.89446]
[1721659776003,2.89394,3455.5,3454.6,5.39456]
[1721659776190,2.89394,3455.5,3454.7,2.89456]
[1721659776779,0.807637,3455.6,3454.9,2.89439]
[1721659776956,2.89377,3455.7,3454.9,2.89439]
[1721659777159,3.24377,3455.7,3455.0,2.89434]
[1721659777363,0.35,3455.7,3455.1,2.89427]
[1721659777597,0.35,3455.7,3455.2,0.0578794]
[1721659777756,7.32,3456.3,3455.2,0.0578794]
[1721659777757,2.89352,3456.0,3455.2,2.89412]
[1721659778111,2.89352,3456.0,3455.3,2.89403]
[1721659778257,2.89352,3456.0,3455.2,3.183532]
[1721659778258,2.89352,3456.0,3455.2,0.289412]
[1721659778456,2.89391,3455.6,3454.9,2.89443]
[1721659778662,2.89391,3455.6,3454.9,2.89437]
[1721659778903,2.89391,3455.6,3455.0,2.89435]
[1721659779194,10.21328,3456.3,3455.3,2.89408]
[1721659779195,2.89359,3456.0,3455.3,2.89408]
[1721659779395,7.32,3456.3,3455.3,2.89404]
[1721659779641,0.35,3456.1,3455.5,2.89393]
[1721659779805,7.32,3456.3,3455.7,2.89376]
[1721659780001,2.89336,3456.2,3455.5,2.89393]
[1721659780327,2.89352,3456.0,3455.3,2.89403]
[1721659781294,2.89335,3456.2,3455.3,2.89403]
[1721659781742,2.89352,3456.0,3455.3,2.89403]
[1721659782896,2.89364,3455.9,3455.0,2.89435]
[1721659783101,2.89364,3455.9,3454.7,3.0]
[1721659783102,2.89381,3455.7,3454.8,2.89451]
[1721659783298,2.89398,3455.5,3454.7,2.89458]
[1721659783541,2.89398,3455.5,3454.8,2.89452]
[1721659784441,2.89364,3455.9,3455.0,2.89431]
[1721659784738,0.35,3455.7,3455.1,2.89424]
[1721659785339,0.35,3455.7,3454.3,3.289]
[1721659785634,3.24357,3456.0,3455.2,2.89414]
[1721659785836,0.863125,3455.9,3455.5,2.89385]
[1721659786037,2.89327,3456.3,3455.6,2.8938]
[1721659786245,3.24327,3456.3,3455.6,2.8938]
[1721659786454,2.89335,3456.2,3455.5,2.89393]
[1721659786776,3.217481,3456.4,3455.6,2.89378]
[1721659786920,2.89338,3456.2,3455.4,5.7879]
[1721659787276,2.89338,3456.2,3455.4,2.89394]
[1721659787611,2.89338,3456.2,3455.5,2.89389]
[1721659788155,1.1385111,3456.3,3454.7,2.89455]
[1721659788156,2.89369,3455.8,3454.7,2.89455]
[1721659788458,2.89397,3455.5,3454.2,9.51536955]
[1721659788611,2.89433,3455.1,3454.3,2.89489]
[1721659788816,2.89433,3455.1,3454.2,2.89502]
[1721659788817,2.89445,3454.9,3454.2,2.89502]
[1721659789137,2.89445,3454.9,3454.0,2.89517]